Cogmind - Beta 14 @@@ ROGUE MODE // 2025.04.23 @ 22:50:14 Player: jumpy Result: Destroyed by Y-54 Guardian with Gatling Laser Performance ------------- Evolutions (4) 2000 Regions Visited (6) 1200 Robots Destroyed (36) 180 Value Destroyed (1105) 1105 Prototype IDs (5) 100 Alien Tech Used (0) 0 Bonus (211) 211 TOTAL SCORE: 4796 Bonus ------- High Alert Combat Kills 11 Entered Garrisons 200 Cogmind --------- Core Integrity 0/850 Matter 250/300 Energy 100/100 System Corruption 15% Temperature Cool (15) Movement Hovering (50) Location -6/Garrison Parts ------- > --- POWER (1) -------- (None) > --- PROPULSION (4) --- Cooled Aerolev Unit > --- UTILITY (8) ------ (None) > --- WEAPON (2) ------- (None) > --- INVENTORY (5) ---- (None) Peak State ------------ > --- POWER ------------ Heavy Deuterium Engine > --- PROPULSION ------- Light Treads Advanced Treads Armored Leg Cooled Aerolev Unit > --- UTILITY ---------- Medium Storage Unit Hardened Medium Armor Plating Improved Field Recycling Unit > --- WEAPON ----------- Heavy Ion Cannon Improved Assault Rifle > --- INVENTORY -------- Heavy EM Shotgun Small Laser [Rating: 35] Favorites ----------- Power Heavy Deuterium Engine Engine Heavy Deuterium Engine Propulsion Aluminum Leg Treads Light Treads Leg Aluminum Leg Wheel Compact Wheel Hover Unit Cooled Aerolev Unit Utility Medium Storage Unit Device Improved Field Recycling Unit Storage Medium Storage Unit Protection Hardened Medium Armor Plating Weapon Heavy Ion Cannon Energy Gun Small Laser Energy Cannon Heavy Ion Cannon Ballistic Gun Improved Assault Rifle Ballistic Cannon Assault Cannon Launcher Mini Grenade Launcher Slashing Weapon Power Sword Build | -11 -10 -9 -8 -7 -6 -6 ------- Run | Yrd Mat Mat Mat Fac Fac Gar Slots Evolved 8 | . . 2 2 2 2 . Power . | . . . . . . . Propulsion 2 | . . 2 . . . . Utility 6 | . . . 2 2 2 . Weapon . | . . . . . . . Parts Attached 63 | 7 2 8 14 5 18 9 Power 10 | 1 . 1 3 2 2 1 Engine 10 | 1 . 1 3 2 2 1 Core . | . . . . . . . Reactor . | . . . . . . . Propulsion 19 | 2 . 3 3 . 8 3 Treads 4 | . . . 2 . . 2 Leg 9 | 2 . 3 1 . 3 . Wheel 2 | . . . . . 2 . Hover 4 | . . . . . 3 1 Flight . | . . . . . . . Utility 11 | 2 1 1 1 1 4 1 Device 7 | 1 . 1 1 1 3 . Storage 2 | 1 1 . . . . . Processor . | . . . . . . . Hackware . | . . . . . . . Protection 2 | . . . . . 1 1 Artifact . | . . . . . . . Weapon 23 | 2 1 3 7 2 4 4 Energy Gun 7 | 1 . 2 2 . 1 1 Energy Cannon 2 | . . . . 1 . 1 Ballistic Gun 9 | 1 . 1 3 . 3 1 Ballistic Cannon 3 | . 1 . 1 1 . . Launcher 1 | . . . 1 . . . Special Weapon . | . . . . . . . Impact Weapon . | . . . . . . . Slashing Weapon 1 | . . . . . . 1 Piercing Weapon . | . . . . . . . Special Melee Weapon . | . . . . . . . Unidentified Prototypes 5 | . . . 3 1 1 . Corrupted Parts 2 | . . . . . . 2 System Corruption 12 | . . . . . . 12 Parts Lost 28 | . 2 . 4 3 6 13 Power 5 | . . . 1 1 1 2 Propulsion 7 | . 1 . 2 . 2 2 Utility 8 | . . . 1 1 2 4 Weapon 8 | . 1 . . 1 1 5 Highest Loss Streak 10 | . 2 . 4 3 4 10 To Critical Strikes . | . . . . . . . Average Slot Usage (%) 59 | . 92 84 65 52 57 32 Engine 7 | . 12 10 7 6 5 5 Treads 2 | . . . 3 15 1 4 Leg 10 | . 25 32 15 . 8 . Hover 1 | . . . . . 3 . Device 9 | . 12 10 11 6 10 1 Storage 7 | . 14 11 9 7 6 5 Protection 2 | . . . . . 4 3 Energy Gun 2 | . 7 10 4 . 1 . Energy Cannon 3 | . . . . 2 5 2 Ballistic Gun 7 | . 12 10 10 11 5 4 Peak Build Rating 35 | 7 7 8 16 21 35 27 Average Rating 20 | 5 6 7 11 16 30 13 On Entrance 11 | . 7 1 8 14 21 29 Naked Turns . | . . . . . . . Heaviest Build 56 | 14 21 16 23 44 56 42 Greatest Support 42 | 20 20 30 42 42 42 20 Greatest Overweight (x) 7 | . 5 . 1 1 5 7 Average Overweight (x) . | . . . . . 1 1 Largest Inventory Capacity 10 | 8 10 10 10 10 10 10 Average Capacity 9 | 7 9 10 10 10 10 9 Most Carried 9 | 5 9 8 7 6 4 4 Average Carried 3 | 3 7 2 5 4 2 1 Final Capacity 10 | 8 10 10 10 10 10 5 Final Carried 9 | 5 9 4 7 2 3 . Class Distribution -------------------- 83% | Mutant 16% | Scavenger-Mutant Dominant Class ---------------- Mutant | -10/Materials Scavenger-Mutant | -9/Materials Mutant | -8/Materials Mutant | -7/Factory Mutant | -6/Factory Scavenger-Mutant | -6/Garrison Resources | -11 -10 -9 -8 -7 -6 -6 ----------- Run | Yrd Mat Mat Mat Fac Fac Gar Matter Collected 1133 | 297 25 78 166 55 470 42 Remotely . | . . . . . . . Salvage Created 1539 | 200 128 87 409 52 588 75 Parts 72 | 12 9 9 18 2 20 2 Haulers Intercepted 1 | . . . 1 . . . Recyclers Shooed 2 | . . . 2 . . . Parts Field Recycled . | . . . . . . . Retrieved Matter . | . . . . . . . Parts Self-Destructed . | . . . . . . . Prevented . | . . . . . . . Kills | -11 -10 -9 -8 -7 -6 -6 ------- Run | Yrd Mat Mat Mat Fac Fac Gar Combat Hostiles Destroyed 26 | . 5 4 8 1 7 1 Guns 13 | . 3 4 2 . 4 . Cannons 10 | . 2 . 4 1 3 . AOE 2 | . . . 2 . . . Classes Destroyed 9 | 2 2 . 3 . 2 . Worker 1 | . . . . . 1 . Tunneler 4 | 4 . . . . . . Hauler 1 | . . . 1 . . . Recycler 4 | 1 . . 1 . 2 . Swarmer 6 | . 3 3 . . . . Grunt 11 | . 2 1 5 . 3 . Brawler 1 | . . . 1 . . . Sentry 6 | . . . 2 1 2 1 Programmer 2 | . . . . . 2 . Best Kill Streak 4 | 3 3 3 4 1 2 1 Combat Bots Only 3 | . 3 3 3 1 1 1 Max Kills in Single Turn 2 | 1 1 2 2 1 1 1 Gunslinging 1 | . . 1 . . . . Exploded 2 | . . . 2 . . . Melee . | . . . . . . . Uniques/NPCs Destroyed . | . . . . . . . Combat | -11 -10 -9 -8 -7 -6 -6 -------- Run | Yrd Mat Mat Mat Fac Fac Gar Hostile Shots Fired 621 | . 94 21 63 54 147 242 Missed 188 | . 35 11 21 18 40 63 Damage Taken 4906 | . 665 110 793 283 1401 1654 Core 1369 | . 196 15 262 42 158 696 Absorbed by Shields . | . . . . . . . Core Remaining (%) 72 | 100 21 96 52 94 . . Volleys Fired 111 | 9 20 10 25 3 35 9 Largest 2 | 2 2 2 2 2 2 1 Hottest 105 | 60 60 60 84 67 105 65 Shots Fired 208 | 18 40 20 50 6 65 9 Gun 132 | 18 27 20 28 3 31 5 Cannon 71 | . 13 . 17 3 34 4 Launcher 5 | . . . 5 . . . Special . | . . . . . . . Kinetic 116 | 9 33 10 33 6 25 . Thermal 82 | 9 7 10 12 . 40 4 Explosive 5 | . . . 5 . . . Electromagnetic 5 | . . . . . . 5 Robot Hit Streak 16 | 10 8 7 5 10 16 7 Robot Miss Streak 6 | 2 6 2 3 . 4 2 Penetration Max . | . . . . . . . Secondary Targets 3 | . 1 2 . . . . Max Gunslinging Chain 1 | . 1 1 . . . . Shots Hit Robots 141 | 12 17 13 32 6 49 12 Core Hits 82 | 6 8 6 23 2 32 5 Critical Kills . | . . . . . . . Critical Parts Destroyed . | . . . . . . . Critical Strikes 2 | . . . . 1 . 1 Blast 1 | . . . . 1 . . Sever 1 | . . . . . . 1 Melee Attacks 6 | . . . . . . 6 Impact . | . . . . . . . Slashing 6 | . . . . . . 6 Piercing . | . . . . . . . Sneak Attacks . | . . . . . . . Combat Hostiles . | . . . . . . . Follow-up Attacks . | . . . . . . . Damage Inflicted 3276 | 151 262 125 1032 115 1161 430 Guns 1248 | 151 145 125 258 45 425 99 Cannons 1260 | . 117 . 259 70 736 78 Explosions 562 | . . . 504 . . 58 Melee 193 | . . . . . . 193 Ramming 13 | . . . 11 . . 2 Kinetic 1268 | 83 207 60 428 115 375 . Thermal 1199 | 68 55 65 89 . 786 136 Explosive 504 | . . . 504 . . . Electromagnetic 99 | . . . . . . 99 Impact . | . . . . . . . Slashing 193 | . . . . . . 193 Piercing . | . . . . . . . Highest Corruption 15 | . . . . . 3 15 Average Corruption 5 | . . . . . 2 11 Corruption Purged . | . . . . . . . Corruption Blocked . | . . . . . . . Effects 22 | . . . . . 9 13 Message Errors 7 | . . . . . 1 6 Matter Fused 4 | . . . . . 3 1 Heat Flow Errors 4 | . . . . . 1 3 Energy Discharges 3 | . . . . . 1 2 Data Loss (minor) 3 | . . . . . 2 1 Weapon Failures 1 | . . . . . 1 . Overload Shots . | . . . . . . . Overflow Damage 26 | . . . 11 . 7 8 Projectiles 7 | . . . . . 7 . Explosions 19 | . . . 11 . . 8 Melee . | . . . . . . . Knockbacks 5 | . 1 . 4 . . . Impact . | . . . . . . . Kinetic 5 | . 1 . 4 . . . Secondary . | . . . . . . . Self-Inflicted Damage 85 | . . . 32 . . 53 Shots 2 | . . . 1 . . 1 Rammed 2 | . . . 1 . . 1 Targets Rammed 2 | . . . 1 . . 1 Kicked . | . . . . . . . Crushed . | . . . . . . . Highest Temperature 266 | . 42 34 220 11 167 266 Average Temperature 49 | . 17 15 68 7 45 71 Received Heat Transfer 1716 | . 318 27 426 96 342 507 Siege Activations . | . . . . . . . Robots Corrupted 1 | . . . . . . 1 Combat Hostiles 1 | . . . . . . 1 Parts Fried 1 | . . . . . . 1 Impact Corruptions . | . . . . . . . Robots Melted . | . . . . . . . Combat Hostiles . | . . . . . . . Parts Melted 1 | . . . . . 1 . Heat Transferred 1811 | 150 125 150 200 . 1025 161 Parts Sabotaged . | . . . . . . . Parts Stolen . | . . . . . . . Parts Stripped . | . . . . . . . Power Chain Reactions 1 | . . . . . . 1 Alert | -11 -10 -9 -8 -7 -6 -6 ------- Run | Yrd Mat Mat Mat Fac Fac Gar Peak Influence 415 | 25 196 174 415 112 94 20 Initial 97 | . 16 74 73 97 54 . Average 85 | 8 100 124 264 102 47 15 Maximum Alert Level 2 | . . . 2 . . . Low Security (%) 89 | 100 100 100 26 100 100 100 Level 1 9 | . . . 65 . . . Level 2 1 | . . . 8 . . . Level 3 . | . . . . . . . Level 4 . | . . . . . . . Level 5 . | . . . . . . . High Security . | . . . . . . . Max Security . | . . . . . . . Squads Dispatched 6 | . 1 1 1 . 3 . Investigation 1 | . . . . . 1 . Extermination 2 | . . . . . 2 . Reinforcement 3 | . 1 1 1 . . . Assault . | . . . . . . . Garrison . | . . . . . . . Intercept . | . . . . . . . Searches Triggered . | . . . . . . . Construction Impeded . | . . . . . . . Haulers Reinforced . | . . . . . . . Active Scanning Responses . | . . . . . . . Cargo Convoy Interrupts . | . . . . . . . Stealth | -11 -10 -9 -8 -7 -6 -6 --------- Run | Yrd Mat Mat Mat Fac Fac Gar Distress Signals 7 | . 1 1 4 . 1 . Communications Jammed . | . . . . . . . Distress Signals . | . . . . . . . Times Spotted 59 | . 12 6 18 1 14 8 Peak Tracking Total 8 | . 5 7 8 1 5 6 Tactical Retreats 3 | . . . 2 . 1 . Traps | -11 -10 -9 -8 -7 -6 -6 ------- Run | Yrd Mat Mat Mat Fac Fac Gar Traps Triggered 3 | . 2 . . . 1 . Indirectly . | . . . . . . . Trap Hack Attempts . | . . . . . . . Triggered . | . . . . . . . Disarmed . | . . . . . . . Reprogrammed . | . . . . . . . Reused . | . . . . . . . Traps Extracted . | . . . . . . . Installed . | . . . . . . . Triggered . | . . . . . . . Machines | -11 -10 -9 -8 -7 -6 -6 ---------- Run | Yrd Mat Mat Mat Fac Fac Gar Machines Disabled 2 | . 2 . . . . . Max in Single Turn 1 | . 1 . . . . . Machines Repaired . | . . . . . . . Machines Dismantled . | . . . . . . . Machines Sabotaged . | . . . . . . . Overloaded Fab Kills . | . . . . . . . Hacking | -11 -10 -9 -8 -7 -6 -6 --------- Run | Yrd Mat Mat Mat Fac Fac Gar Machines Accessed 4 | . . . 1 . 2 1 Terminals 3 | . . . 1 . 1 1 Fabricators . | . . . . . . . Repair Stations . | . . . . . . . Recycling Units . | . . . . . . . Scanalyzers . | . . . . . . . Garrison Access 1 | . . . . . 1 . Total Hacks 9 | . . . 2 . 5 2 Successful 3 | . . . 2 . 1 . Failed 6 | . . . . . 4 2 Catastrophic 2 | . . . . . 1 1 Database Lockouts . | . . . . . . . Manual 1 | . . . . . 1 . Terminals 5 | . . . 2 . 1 2 Fabricators . | . . . . . . . Repair Stations . | . . . . . . . Recycling Units . | . . . . . . . Scanalyzers . | . . . . . . . Garrison Access 4 | . . . . . 4 . Terminal Hacks 2 | . . . 2 . . . Record 1 | . . . 1 . . . Maintenance Status 1 | . . . 1 . . . Fabricator Hacks . | . . . . . . . Repair Station Hacks . | . . . . . . . Recycling Unit Hacks . | . . . . . . . Scanalyzer . | . . . . . . . Garrison Access Hacks 1 | . . . . . 1 . Unlock Access 1 | . . . . . 1 . Unauthorized Hacks . | . . . . . . . Terminals . | . . . . . . . Fabricators . | . . . . . . . Repair Stations . | . . . . . . . Recycling Units . | . . . . . . . Scanalyzers . | . . . . . . . Garrison Access . | . . . . . . . Data Cores Recovered . | . . . . . . . Used . | . . . . . . . Hacking Detections 4 | . . . 1 . 2 1 Full Trace Events 1 | . . . . . 1 . Feedback Events . | . . . . . . . Feedback Blocked . | . . . . . . . Robot Schematics Acquired . | . . . . . . . Robots Built . | . . . . . . . Authchips . | . . . . . . . Time . | . . . . . . . Total Robot Build Rating . | . . . . . . . Part Schematics Acquired . | . . . . . . . Parts Built . | . . . . . . . Authchips . | . . . . . . . Time . | . . . . . . . Total Part Build Rating . | . . . . . . . Parts Repaired . | . . . . . . . Time . | . . . . . . . Parts Recycled . | . . . . . . . Recycled Matter . | . . . . . . . Retrieved Matter . | . . . . . . . Retrieved Components . | . . . . . . . Parts Scanalyzed . | . . . . . . . Part Schematics Acquired . | . . . . . . . Parts Damaged . | . . . . . . . Bothacking | -11 -10 -9 -8 -7 -6 -6 ------------ Run | Yrd Mat Mat Mat Fac Fac Gar Used RIF Installer . | . . . . . . . Robots Hacked . | . . . . . . . Non-combat . | . . . . . . . Combat . | . . . . . . . Robot Hacks Applied . | . . . . . . . Relay Couplers Released . | . . . . . . . Fabnet Peak Effective % . | . . . . . . . Robots Rewired . | . . . . . . . Allies Hacked . | . . . . . . . Hacks Repelled . | . . . . . . . Allies | -11 -10 -9 -8 -7 -6 -6 -------- Run | Yrd Mat Mat Mat Fac Fac Gar Total Allies . | . . . . . . . Largest Group . | . . . . . . . Highest-Rated Group . | . . . . . . . Highest-Rated Ally . | . . . . . . . Total Orders . | . . . . . . . Ally Attacks . | . . . . . . . Total Damage . | . . . . . . . Kills . | . . . . . . . Allies Corrupted . | . . . . . . . Allies Melted . | . . . . . . . Intel | -11 -10 -9 -8 -7 -6 -6 ------- Run | Yrd Mat Mat Mat Fac Fac Gar Robot Analysis Total . | . . . . . . . Derelict Logs Recovered . | . . . . . . . Drone Launches . | . . . . . . . Drone Recoveries . | . . . . . . . Exploration | -11 -10 -9 -8 -7 -6 -6 ------------- Run | Yrd Mat Mat Mat Fac Fac Gar Turns Passed 2978 | 167 270 155 418 222 1403 343 Spaces Moved 1490 | 110 133 91 203 121 719 113 Core 27 | 10 12 . . . . 5 Treads 326 | . . . 79 121 43 83 Legs 846 | 100 121 91 124 . 410 . Wheels 238 | . . . . . 224 14 Hover 53 | . . . . . 42 11 Flight . | . . . . . . . Fastest Speed 50 | 50 120 120 120 152 115 50 Average Speed 161 | 113 145 120 150 171 172 203 Slowest Speed 400 | 120 300 120 190 232 350 400 Overloaded Moves . | . . . . . . . Propulsion Burnouts . | . . . . . . . Robots Hopped . | . . . . . . . Cave-ins Triggered . | . . . . . . . Exploration Rate (%) 16 | 4 32 14 29 4 13 22 Regions Visited 6 Branch Regions . Pre-discovered Areas . | . . . . . . . Known Exits Taken 1 | . . . . . 1 . Unknown Exits Taken 5 | 1 1 1 1 1 . . Scrap Searched . | . . . . . . . Spaces Dug . | . . . . . . . Terrain Destroyed 39 | . . . 36 . 3 . Melee . | . . . . . . . Projectile 6 | . . . 3 . 3 . AOE 33 | . . . 33 . . . Terrain Rammed . | . . . . . . . Walls Destroyed . | . . . . . . . Machines Disabled . | . . . . . . . Actions | -11 -10 -9 -8 -7 -6 -6 --------- Run | Yrd Mat Mat Mat Fac Fac Gar Total 1827 | 130 170 119 260 131 811 206 Wait 120 | . 9 8 11 . 27 65 Move 1484 | 109 132 90 202 120 718 113 Hop . | . . . . . . . Pick Up 22 | 5 5 2 4 . 6 . Fast Attach 26 | 7 . . 4 1 9 5 Attach 22 | . . 7 2 3 6 4 Detach 2 | . . . . . 1 1 Swap 15 | . 2 1 8 1 3 . Drop 17 | . 2 1 3 3 6 2 Fire 111 | 9 20 10 25 3 35 9 Melee 6 | . . . . . . 6 Ram . | . . . . . . . Kick . | . . . . . . . Crush 2 | . . . 1 . . 1 Escape Stasis . | . . . . . . . Rewire . | . . . . . . . Trap . | . . . . . . . Miscellaneous . | . . . . . . . Route ------- -11/Scrapyard -10/Materials -9/Materials -8/Materials -7/Factory -6/Factory -6/Garrison History --------- Turn | Location | Event 43 | -11/Scrapyard | Discovered new exit (range 16) 168 | -11/Scrapyard | Entered Materials 302 | -10/Materials | Build established: Mutant 406 | -10/Materials | Discovered new exit (range 15) 414 | -10/Materials | Core integrity fell below 50% 438 | -10/Materials | Entered another Materials area 438 | -9/Materials | Evolved 2 slots: Propulsion x2 587 | -9/Materials | Discovered new exit (range 4) 593 | -9/Materials | Entered another Materials area 593 | -8/Materials | Evolved 2 slots: Utility x2 770 | -8/Materials | Lost 4 parts (1p2n1u) 996 | -8/Materials | Discovered new exit (range 10) 1011 | -8/Materials | Entered Factory 1011 | -7/Factory | Evolved 2 slots: Utility x2 1168 | -7/Factory | Lost 3 parts (1p1u1w) 1205 | -7/Factory | Discovered new exit (range 11) 1233 | -7/Factory | Entered another Factory area 1233 | -6/Factory | Evolved 2 slots: Utility x2 2398 | -6/Factory | Lost 4 parts (1p1n1u1w) 2635 | -6/Factory | Identified exit to Garrison 2636 | -6/Factory | Entered Garrison 2654 | -6/Garrison | Triggered checkpoint 2674 | -6/Garrison | Core integrity fell below 50% 2727 | -6/Garrison | Lost 10 parts (1p3n2u4w) 2738 | -6/Garrison | System corruption reached 10% 2930 | -6/Garrison | Triggered checkpoint 2972 | -6/Garrison | Core integrity fell below 20% 2979 | -6/Garrison | Destroyed by Y-54 Guardian with Gatling Laser Last Messages --------------- 02850_ System corrupted: Energy discharge (-98). 02881_ F&TTFHYMT0Y:ALGA 02967_ Slug penetrates Reinforced Barrier. 02968_ Med. Storage Unit destroyed. 02969_ Slammed into G-50 Soldier. 02971_ Flak Gun destroyed. 02971_ Critical hit (Burn: +37). 02971_ Dropped Lgt. Treads. 02972_ Dropped Hvy. Ion Cannon. 02973_ Penetrated by Slug. 02973_ Imp. Light Armor Plating destroyed. 02974_ Imp. Deuterium Engine destroyed. Map ----- +----------------------------------------------------+ | ?????????????????????????????????????????????????? | | ?????????????????????????????????????????????????? | | ?????????????????????????????????????????????????? | | ?????????????????????????????????????????????????? | | ?????????????????????????????????????????????????? | | ?????????????????????????????????????????????????? | | ?????????????????????????????????????????????????? | | ?????????????????????????????????????????????????? | | ?????????????????????????????????????????????????? | | ?????????????????????????????????????????????????? | | ?????????????????????????????????????????????????? | | ?????????????????????????????????????????????????? | | ?????????????????????????????????????????????????? | | ?????????????????????????????????????????????????? | | ?????????????????????????????????????????????????? | | ?????????????????????????????????????????????????? | | ?????????????????????????????????????????????????? | | ?????????????????????????????????????????????????? | | ?????????????????????????????????????????????????? | | ?????????????????????????????????????????????????? | | ??????????????????????######?????????????????????? | | ??????????????????????# ?????????????????????? | | ??????????????????????# ??????????????????????? | | ??????????????????????# ??????????????????????? | | ??????????????????????# #??????????????????????? | | ??????????????????????# @#??????????????????????? | | ??????????????????????# #??????????????????????? | | ??????????????????????# #??????????????????????? | | ??????????????????????#Y #??????????????????????? | | ??????????????????????# #??????????????????????? | | ??????????????????????# #??????????????????????? | | ???????????## ##""""## #??????????????????????? | | ???????????# #??????????????????????? | | ???????????# #??????????????????????? | | ???????????# #??????????????????????? | | ???????????# ## ^^ ## g]#??????????????????????? | | ???????????# ## ##gb=###????????????????????? | | ???????????" ^ g #????????????????????? | | ???????????" #????????????????????? | | ???????????" ^ #????????????????????? | | ???????????" ^^ h #????????????????????? | | ???????????# ## ## ###????????????????????? | | ???????????# ## ## ###########????????????? | | ???????????# #????????????? | | ???????????# #????????????? | | ???????????# ###T#### #????????????? | | ???????????## ##""""######?###??# #????????????? | | ?????????????????????????????????# #????????????? | | ?????????????????????????????????# #????????????? | | ?????????????????????????????????# #????????????? | +----------------------------------------------------+ Best States ------------- Heat Dissipation 37 Energy Generation 18 Energy Capacity 310 Matter Stores 300 Matter Capacity 300 Sight Range 16 Robot Scan Range 14 Terrain Scan Density 10 ECM Strength 2 Cloak Strength 2 Armor Coverage 225 Evasion (%) 55 Recoil Reduction 2 Item Schematics ----------------- None Robot Schematics ------------------ None Fabricated ------------ Nothing Alien Tech Used ----------------- None Achievements -------------- None Challenges ------------ None Game ------ Seed PotentialTacticalInterpreter Manual? 0 Play Time 00:17:59 Cumulative 46.4 hours Start 2025.04.23 @ 22:34:05 End 2025.04.23 @ 22:50:14 Sessions 1 Manual Loads 0 Difficulty Rogue Special Mode None Game No. 143 Rogue 143 Adventurer 0 Explorer 0 Win Type - Total 0 Types 0/0/0/0/0/0/0/0/0 Lore% 14 Gallery% 37 Achievement% 30 Wizard Run 0 Options --------- Layout 0 ASCII 0 Keyboard 0 Movement Numpad Keybinds 0 Fullscreen 2 Font 18/Terminus Map View 76x50 Zoom Use 0% Tactical HUD 1 Map Filters NONE Filters NONE Steam 1 RUN: 8382a7a8-69e9-48d9-a0ca-9dff96a3fc47